Cogmind - Beta 16 @@@ ROGUE MODE // 2025.10.30 @ 23:14:09 Player: Not_Jesus8 Result: Destroyed by G-67 Veteran with Field Laser Performance ------------- Evolutions (7) 3500 Regions Visited (16) 3200 Robots Destroyed (148) 740 Value Destroyed (7137) 7137 Prototype IDs (28) 560 Alien Tech Used (0) 0 Bonus (2656) 2656 TOTAL SCORE: 17793 Bonus ------- High Alert Combat Kills 346 Follower Combat Kills 310 Entered Garrisons 600 Used RIF Installer 1000 Entered DSFs 500 Aligned with FarCom 300 Friendly Fire -400 Cogmind --------- Core Integrity 0/1300 Matter 9/300 Energy 100/100 System Corruption 6% Temperature Cool (64) Movement Core (50) Location -3/Garrison Parts ------- > --- POWER (1) -------- (None) > --- PROPULSION (7) --- (None) > --- UTILITY (8) ------ Advanced Signal Interpreter > --- WEAPON (5) ------- (None) > --- INVENTORY (5) ---- Relay Coupler [NC] (28) Relay Coupler [NC] (30) Relay Coupler [Swarmer] (27) Relay Coupler [Grunt] (35) Improved Remote Datajack Peak State ------------ > --- POWER ------------ Light Angular Momentum Engine > --- PROPULSION ------- Armored Treads Medium Treads Medium Treads Medium Treads > --- UTILITY ---------- Improved Coolant Injector Large Storage Unit Advanced Targeting Computer Advanced Targeting Computer Reactive Plating Heavy Reflective Plating > --- WEAPON ----------- XL Autogun Array Heavy Missile Launcher > --- INVENTORY -------- Advanced Treads Advanced Treads Compact Matter Pod Advanced Targeting Computer Core Analyzer Improved Medium Armor Plating Improved Heavy Armor Plating Layered Light Armor Plating Shock Absorption System Gauss Rifle Gauss Rifle Flak Cannon Improved Datajack [Rating: 91] Favorites ----------- Power Light Nuclear Core Engine Light Deuterium Engine Power Core Light Nuclear Core Propulsion Medium Treads Treads Medium Treads Leg Myomer Leg Hover Unit Antigrav System Utility Advanced Targeting Computer Device Improved Coolant Injector Storage Large Storage Unit Processor Advanced Targeting Computer Hackware Relay Coupler [Swarmer] Protection Layered Light Armor Plating Weapon XL Autogun Array Energy Gun Medium Laser Ballistic Gun XL Autogun Array Ballistic Cannon Light Cannon Launcher Heavy Missile Launcher Special Weapon Improved Remote Datajack Special Melee Weapon Improved Datajack Build | -11 -10 -10 -10 -9 -8 -7 -7 -7 -6 -5 -5 -5 -5 -4 -3 -3 ------- Run | Yrd Mat Min Exi Min Mat Fac Gar Fac Fac Fac Gar Fac DSF Fac Res Gar Slots Evolved 14 | . . . . . 4 2 . . 2 2 . . . 2 2 . Power . | . . . . . . . . . . . . . . . . . Propulsion 5 | . . . . . . 2 . . . . . . . 1 2 . Utility 6 | . . . . . 2 . . . 1 2 . . . 1 . . Weapon 3 | . . . . . 2 . . . 1 . . . . . . . Parts Attached 93 | 6 2 . 2 . 10 6 3 11 1 16 15 5 7 7 1 1 Power 6 | . . . . . 1 . . 1 . 2 2 . . . . . Engine 4 | . . . . . . . . 1 . 2 1 . . . . . Core 2 | . . . . . 1 . . . . . 1 . . . . . Reactor . | . . . . . . . . . . . . . . . . . Propulsion 21 | 2 . . 1 . 1 5 . 3 1 1 3 1 1 2 . . Treads 19 | 2 . . 1 . 1 5 . 3 1 1 3 1 1 . . . Leg 1 | . . . . . . . . . . . . . . 1 . . Wheel . | . . . . . . . . . . . . . . . . . Hover 1 | . . . . . . . . . . . . . . 1 . . Flight . | . . . . . . . . . . . . . . . . . Utility 35 | 2 . . 1 . 6 1 2 5 . 6 3 4 3 2 . . Device 3 | 1 . . . . . . . 1 . 1 . . . . . . Storage 4 | 1 . . . . 2 1 . . . . . . . . . . Processor 9 | . . . 1 . 3 . 1 . . . . 2 1 1 . . Hackware 5 | . . . . . . . . 1 . 1 2 . . 1 . . Protection 14 | . . . . . 1 . 1 3 . 4 1 2 2 . . . Artifact . | . . . . . . . . . . . . . . . . . Weapon 31 | 2 2 . . . 2 . 1 2 . 7 7 . 3 3 1 1 Energy Gun 1 | 1 . . . . . . . . . . . . . . . . Energy Cannon . | . . . . . . . . . . . . . . . . . Ballistic Gun 14 | 1 . . . . 2 . . 1 . 6 4 . . . . . Ballistic Cannon 12 | . 2 . . . . . . . . 1 3 . 3 1 1 1 Launcher 1 | . . . . . . . 1 . . . . . . . . . Special Weapon 1 | . . . . . . . . . . . . . . 1 . . Impact Weapon . | . . . . . . . . . . . . . . . . . Slashing Weapon . | . . . . . . . . . . . . . . . . . Piercing Weapon . | . . . . . . . . . . . . . . . . . Special Melee Weapon 2 | . . . . . . . . 1 . . . . . 1 . . Unidentified Prototypes 2 | . . . . . 1 . . . . 1 . . . . . . Corrupted Parts 1 | . . . 1 . . . . . . . . . . . . . System Corruption 3 | . . . 3 . . . . . . . . . . . . . Parts Lost 35 | . . . . . . . . . . 3 18 . 10 4 . . Power 3 | . . . . . . . . . . 1 2 . . . . . Propulsion 9 | . . . . . . . . . . . 4 . 3 2 . . Utility 11 | . . . . . . . . . . 2 5 . 3 1 . . Weapon 12 | . . . . . . . . . . . 7 . 4 1 . . Highest Loss Streak 16 | . . . . . . . . . . 2 16 . 6 2 . . To Critical Strikes 1 | . . . . . . . . . . . . . 1 . . . Average Backups 10 | . 2 5 6 5 7 11 14 14 14 12 10 12 11 9 5 4 Power . | . . . . . . . . . . . . . . . . . Propulsion 1 | . . . . . 1 3 3 2 2 1 . . . . . . Utility 5 | . 1 3 4 3 1 3 5 7 7 5 7 7 7 6 2 2 Weapon 3 | . . 1 2 2 4 5 4 4 4 3 2 4 3 2 2 1 Tool/Special . | . . . . . . . . . . . . . . . . . Unused Backups 27 | . . . 1 2 7 . 2 4 1 . 1 . . 4 . 5 Power . | . . . . . . . . . . . . . . . . . Propulsion . | . . . . . . . . . . . . . . . . . Utility 21 | . . . 1 2 2 . 2 3 1 . 1 . . 4 . 5 Weapon 6 | . . . . . 5 . . 1 . . . . . . . . Tool/Special . | . . . . . . . . . . . . . . . . . Average Slot Usage (%) 70 | . 84 85 84 85 71 75 76 75 67 75 61 74 72 44 8 4 Engine 2 | . . . . . . . . 5 6 4 2 5 5 4 . . Core 1 | . . . . . 8 7 7 1 . . . . . . . . Treads 23 | . 28 28 28 28 18 29 30 29 26 23 17 23 18 12 . . Device 2 | . 14 14 8 . . . . . . 4 1 . . . . . Storage 7 | . 14 14 14 14 9 7 7 7 6 5 5 5 5 4 . . Processor 10 | . . . 5 14 17 15 15 15 13 9 5 11 12 8 4 4 Protection 7 | . . . . . 8 7 7 6 7 13 5 4 10 8 . . Ballistic Gun 5 | . 2 . . . 8 7 7 7 6 8 9 . . . . . Ballistic Cannon 6 | . 21 28 27 28 . . . . . . 5 17 13 4 3 . Peak Build Rating 91 | 6 6 8 13 13 55 67 69 70 73 91 75 74 74 59 14 13 Average Rating 53 | 4 5 6 10 12 51 65 68 69 70 81 50 65 62 46 13 7 On Entrance 38 | . 6 6 8 13 13 54 67 69 69 73 74 57 74 53 7 7 Avg Prop Armor Cover (%) 5 | . . . . . . . . . 5 . . . . . . . Naked Turns 24 | . . . . . . . . . . . . . . 24 . . Heaviest Build 86 | 9 12 12 12 11 37 47 47 47 51 77 81 85 86 73 10 10 Greatest Support 106 | 40 40 40 42 42 42 106 106 106 104 104 104 94 94 76 3 3 Greatest Overweight (x) 3 | . . . . . . . . . . . 1 . 1 1 3 3 Average Overweight (x) . | . . . . . . . . . . . . . . . 1 . Largest Inventory Capacity 15 | 8 8 8 8 8 10 15 15 15 15 15 15 15 15 15 5 5 Average Capacity 12 | 7 8 8 8 8 8 14 15 15 15 15 15 15 15 13 5 5 Most Carried 15 | 1 4 8 8 8 10 14 15 15 15 15 15 15 15 11 5 5 Average Carried 11 | . 2 5 7 7 7 11 14 14 14 13 12 14 11 9 5 4 Final Capacity 15 | 8 8 8 8 8 10 15 15 15 15 15 15 15 15 5 5 5 Final Carried 15 | 1 4 8 8 8 10 14 15 14 14 11 15 15 10 5 5 5 Class Distribution -------------------- 49% | Gunner 23% | Mutant 13% | Tank 6% | Bothacker-Mutant 6% | Skirmisher Dominant Class ---------------- Mutant | -10/Materials Mutant | -10/Mines Mutant | -10/Exiles Mutant | -9/Mines Gunner | -8/Materials Gunner | -7/Factory Gunner | -7/Garrison Gunner | -7/Factory Gunner | -6/Factory Tank | -5/Factory Skirmisher | -5/Garrison Gunner | -5/Factory Gunner | -5/DSF Bothacker-Mutant | -4/Factory Mutant | -3/Research Mutant | -3/Garrison Resources | -11 -10 -10 -10 -9 -8 -7 -7 -7 -6 -5 -5 -5 -5 -4 -3 -3 ----------- Run | Yrd Mat Min Exi Min Mat Fac Gar Fac Fac Fac Gar Fac DSF Fac Res Gar Matter Collected 5794 | 217 . 210 . 92 692 524 . 877 515 1407 723 . 537 . . . Remotely . | . . . . . . . . . . . . . . . . . Salvage Created 6783 | 78 . 185 . 90 1220 935 . 1130 450 1792 441 . 367 76 19 . Parts 331 | 4 . 7 . 6 64 40 . 65 23 70 29 . 15 5 3 . Haulers Intercepted 8 | . . . . . 5 . . 3 . . . . . . . . Recyclers Shooed 7 | . . . . . . 1 . 4 . 2 . . . . . . Parts Field Recycled . | . . . . . . . . . . . . . . . . . Retrieved Matter . | . . . . . . . . . . . . . . . . . Parts Self-Destructed . | . . . . . . . . . . . . . . . . . Prevented . | . . . . . . . . . . . . . . . . . Parts Restored . | . . . . . . . . . . . . . . . . . Kills | -11 -10 -10 -10 -9 -8 -7 -7 -7 -6 -5 -5 -5 -5 -4 -3 -3 ------- Run | Yrd Mat Min Exi Min Mat Fac Gar Fac Fac Fac Gar Fac DSF Fac Res Gar Combat Hostiles Destroyed 102 | . . 6 . 2 11 15 . 15 6 27 9 . 9 2 . . Melee 4 | . . . . . . . . . . 1 . . 3 . . . Guns 79 | . . . . . 11 15 . 15 6 26 6 . . . . . Cannons 16 | . . 6 . 2 . . . . . . . . 6 2 . . AOE 3 | . . . . . . . . . . . 3 . . . . . Classes Destroyed 19 | 2 . 3 . 1 7 2 . 1 2 . 1 . . . . . Worker 8 | . . . . . . . . 4 . 3 . . . . 1 . Builder 3 | . . . . . 1 1 . 1 . . . . . . . . Tunneler 2 | 1 . . . . . . . 1 . . . . . . . . Hauler 8 | . . . . . 5 . . 3 . . . . . . . . Recycler 6 | 1 . . . . 2 2 . 1 . . . . . . . . Mechanic 1 | . . . . . 1 . . . . . . . . . . . Operator 3 | . . . . . 2 . . . 1 . . . . . . . Watcher 13 | . . . . . 4 . . 5 . 4 . . . . . . Swarmer 5 | . . 1 . . . . . . . . 4 . . . . . Grunt 47 | . . 4 . . 4 12 . 7 2 13 . . 5 . . . Brawler 1 | . . . . . 1 . . . . . . . . . . . Duelist 1 | . . . . . . 1 . . . . . . . . . . Sentry 14 | . . . . 2 5 1 . 3 1 2 . . . . . . Specialist 4 | . . . . . . . . . 1 . 1 . 2 . . . Hunter 9 | . . . . . 1 . . 1 2 1 3 . 1 . . . Programmer 17 | . . . . . . 1 . 4 . 10 . . . 2 . . Heavy 3 | . . . . . . . . . 1 1 . . 1 . . . Striker 1 | . . . . . . . . . . . 1 . . . . . Assembled 1 | . . 1 . . . . . . . . . . . . . . Infiltrator 2 | . . . . . . . . . . . 2 . . . . . Best Kill Streak 6 | 2 . 2 . 2 6 6 . 5 5 5 3 . 4 1 1 . Combat Bots Only 5 | . . 2 . 2 3 5 . 4 5 5 3 . 4 1 . . Max Kills in Single Turn 2 | 1 . 1 . 1 2 1 . 2 1 2 1 . 1 1 1 . Gunslinging . | . . . . . . . . . . . . . . . . . Exploded 1 | . . . . . . . . . . . 1 . . . . . Melee 1 | . . . . . . . . . . 1 . . 1 . . . Uniques/NPCs Destroyed . | . . . . . . . . . . . . . . . . . Combat | -11 -10 -10 -10 -9 -8 -7 -7 -7 -6 -5 -5 -5 -5 -4 -3 -3 -------- Run | Yrd Mat Min Exi Min Mat Fac Gar Fac Fac Fac Gar Fac DSF Fac Res Gar Hostile Shots Fired 847 | . . 16 . 8 12 21 . 59 29 123 174 . 164 130 32 79 Missed 261 | . . 3 . 1 2 10 . 24 5 38 45 . 54 44 13 22 Hits 586 | . . 13 . 7 10 11 . 35 24 85 129 . 110 86 19 57 Melee 11 | . . 1 . . . . . . . . 7 . 3 . . . Projectile 575 | . . 12 . 7 10 11 . 35 24 85 122 . 107 86 19 57 Critical Strikes 30 | . . 1 . . . . . . . 5 5 . 8 6 . 5 Part Disruptions 1 | . . . . . . . . . . 1 . . . . . . Damage Taken 11663 | . . 184 . 96 146 138 115 394 443 2035 2753 . 2313 1653 448 945 Core 3091 | . . 17 . 43 36 6 . 17 79 164 315 . 247 858 420 889 Absorbed by Shields 96 | . . . . . . . . . . . . . . 28 . 68 Redirected to Shielding 22 | . . . . . . . . . . . . . 22 . . . Ignored by Resistances 357 | . . . . . . . . . . 207 94 . . 56 . . Regen/Repaired (Parts) 321 | . . . . . . . . 196 . 125 . . . . . . Core Remaining (%) 72 | 100 . . . 76 93 . . 96 90 . . . 27 25 . . Volleys Fired 329 | 6 2 8 . 3 46 24 4 43 21 92 37 . 26 11 6 . Largest 5 | 2 2 2 . 2 1 1 1 1 1 5 5 . 3 1 1 . Hottest 177 | 70 70 60 . 60 60 60 60 60 60 133 130 . 177 65 55 . Shots Fired 506 | 12 4 16 . 6 46 24 4 43 21 179 86 . 48 11 6 . Gun 397 | 12 2 . . . 46 24 3 43 21 168 78 . . . . . Cannon 97 | . 2 16 . 6 . . . . . 5 3 . 48 11 6 . Launcher 12 | . . . . . . . 1 . . 6 5 . . . . . Special . | . . . . . . . . . . . . . . . . . Kinetic 487 | 6 3 16 . 6 46 24 3 43 21 173 81 . 48 11 6 . Thermal 7 | 6 1 . . . . . . . . . . . . . . . Explosive 12 | . . . . . . . 1 . . 6 5 . . . . . Electromagnetic . | . . . . . . . . . . . . . . . . . Robot Hit Streak 32 | 8 10 17 . 8 28 31 . 32 8 19 7 . 8 5 3 . Robot Miss Streak 6 | 2 . 3 . . 4 3 . 4 4 4 6 . 3 1 3 . Penetration Max 1 | . . . . . . . . . . 1 . . . . . . Secondary Targets 3 | . . . . . . . . . . 3 . . . . . . Max Gunslinging Chain 1 | . . . . . . . . . . 1 . . . . . . Shots Hit Robots 387 | 9 2 10 . 6 46 24 . 43 20 136 49 . 27 12 3 . Core Hits 268 | 4 1 7 . 4 32 32 . 46 17 79 27 . 14 3 2 . Critical Kills 2 | 1 . . . . . . . . . . 1 . . . . . Critical Parts Destroyed 1 | . . . . . 1 . . . . . . . . . . . Critical Strikes 7 | 2 1 . . . 1 . . . . . 1 . 1 1 . . Burn 2 | 1 1 . . . . . . . . . . . . . . . Destroy 3 | 1 . . . . 1 . . . . . 1 . . . . . Blast 2 | . . . . . . . . . . . . . 1 1 . . Melee Attacks 22 | . . . . . . . . 3 . 7 9 . . 3 . . Impact . | . . . . . . . . . . . . . . . . . Slashing . | . . . . . . . . . . . . . . . . . Piercing . | . . . . . . . . . . . . . . . . . Sneak Attacks 2 | . . . . . . . . . . 1 . . . 1 . . Combat Hostiles . | . . . . . . . . . . . . . . . . . Follow-up Attacks . | . . . . . . . . . . . . . . . . . Damage Inflicted 17434 | 104 20 205 . 106 2300 1887 85 2705 1242 5437 1382 . 1136 703 115 7 Guns 13855 | 104 20 . . . 2300 1814 . 2481 1241 5189 706 . . . . . Cannons 2483 | . . 197 . 106 . . . . . 156 127 . 1101 689 107 . Explosions 786 | . . . . . . 48 70 158 . 12 498 . . . . . Melee . | . . . . . . . . . . . . . . . . . Ramming 310 | . . 8 . . . 25 15 66 1 80 51 . 35 14 8 7 Kinetic 16262 | 41 7 197 . 106 2300 1814 . 2481 1241 5345 833 . 1101 689 107 . Thermal 76 | 63 13 . . . . . . . . . . . . . . . Explosive 786 | . . . . . . 48 70 158 . 12 498 . . . . . Electromagnetic . | . . . . . . . . . . . . . . . . . Impact . | . . . . . . . . . . . . . . . . . Slashing . | . . . . . . . . . . . . . . . . . Piercing . | . . . . . . . . . . . . . . . . . Highest Corruption 27 | . . . 3 3 1 . 2 2 . 16 16 16 27 5 2 6 Average Corruption 10 | . . . 3 3 1 . 2 1 . 6 16 16 21 3 1 3 Corruption Purged 2 | . . . . . . . . 2 . . . . . . . . Corruption Blocked . | . . . . . . . . . . . . . . . . . Effects 149 | . . . 2 5 1 . 3 1 . 37 64 11 21 3 . 1 Message Errors 28 | . . . . 1 . . . . . 7 18 2 . . . . Matter Fused 38 | . . . 1 1 . . 1 . . 10 15 6 4 . . . Heat Flow Errors 16 | . . . . . . . 2 . . 5 5 . 4 . . . Energy Discharges 20 | . . . . 1 . . . 1 . 4 10 1 2 1 . . Parts Rejected 1 | . . . . . . . . . . . . . 1 . . . Data Loss (minor) 18 | . . . 1 1 1 . . . . 3 6 2 2 2 . . Data Loss (major) 5 | . . . . 1 . . . . . . 3 . 1 . . . Misfires 7 | . . . . . . . . . . 3 2 . 2 . . . Alerts 4 | . . . . . . . . . . 1 2 . . . . 1 Misdirections 2 | . . . . . . . . . . . 1 . 1 . . . Weapon Failures 10 | . . . . . . . . . . 4 2 . 4 . . . Overload Shots . | . . . . . . . . . . . . . . . . . Overflow Damage 120 | . . 18 . . . . . . . . . . . 102 . . Projectiles 120 | . . 18 . . . . . . . . . . . 102 . . Explosions . | . . . . . . . . . . . . . . . . . Melee . | . . . . . . . . . . . . . . . . . Knockbacks 20 | . . 3 . . . . . . . . . . 8 7 2 . Impact 1 | . . 1 . . . . . . . . . . . . . . Kinetic 18 | . . 2 . . . . . . . . . . 8 6 2 . Secondary 1 | . . . . . . . . . . . . . . 1 . . Self-Inflicted Damage 277 | . . . . . . . 116 . . 11 135 . . 6 4 5 Shots 7 | . . . . . . . 2 . . 1 4 . . . . . Rammed 49 | . . 2 . . . 2 . 8 1 9 9 . 10 3 2 3 Targets Rammed 63 | . . 2 . . . 3 . 13 1 10 9 . 13 7 2 3 Kicked 4 | . . . . . . . . . . . . . . 4 . . Crushed 10 | . . . . . . 1 . 5 . 1 . . 3 . . . Highest Temperature 417 | 40 20 8 . 4 309 162 257 152 417 227 248 . 285 35 . 2 Average Temperature 77 | 18 15 4 . 4 80 69 103 44 200 84 70 . 55 12 . 2 Received Heat Transfer 2337 | . . 72 . 36 72 75 . 105 63 177 198 . 825 327 9 378 Effects 4 | . . . . . . . . . 4 . . . . . . . Shutdowns 1 | . . . . . . . . . 1 . . . . . . . Energy Bleed 1 | . . . . . . . . . 1 . . . . . . . Matter Decay 1 | . . . . . . . . . 1 . . . . . . . Short Circuit 1 | . . . . . . . . . 1 . . . . . . . Siege Activations . | . . . . . . . . . . . . . . . . . Martial Activations . | . . . . . . . . . . . . . . . . . Shielding Activations . | . . . . . . . . . . . . . . . . . Robots Disrupted . | . . . . . . . . . . . . . . . . . Combat Hostiles . | . . . . . . . . . . . . . . . . . Robots Corrupted . | . . . . . . . . . . . . . . . . . Combat Hostiles . | . . . . . . . . . . . . . . . . . Parts Fried . | . . . . . . . . . . . . . . . . . Impact Corruptions 1 | . . . . . . . . . . . . . . 1 . . Robots Melted . | . . . . . . . . . . . . . . . . . Combat Hostiles . | . . . . . . . . . . . . . . . . . Parts Melted . | . . . . . . . . . . . . . . . . . Heat Transferred 370 | 259 111 . . . . . . . . . . . . . . . Parts Sabotaged . | . . . . . . . . . . . . . . . . . Parts Stolen . | . . . . . . . . . . . . . . . . . Parts Stripped . | . . . . . . . . . . . . . . . . . Power Chain Reactions . | . . . . . . . . . . . . . . . . . Alert | -11 -10 -10 -10 -9 -8 -7 -7 -7 -6 -5 -5 -5 -5 -4 -3 -3 ------- Run | Yrd Mat Min Exi Min Mat Fac Gar Fac Fac Fac Gar Fac DSF Fac Res Gar Maximum Alert Level 3 | . . . . . . 1 2 2 1 2 3 1 1 . . . Low Security (%) 48 | 100 100 100 . 100 100 44 . . 51 59 . . . 100 100 100 Level 1 23 | . . . . . . 55 39 45 48 17 10 100 100 . . . Level 2 26 | . . . . . . . 60 54 . 22 75 . . . . . Level 3 1 | . . . . . . . . . . . 14 . . . . . Level 4 . | . . . . . . . . . . . . . . . . . Level 5 . | . . . . . . . . . . . . . . . . . High Security . | . . . . . . . . . . . . . . . . . Max Security . | . . . . . . . . . . . . . . . . . Sterilizations 1 | . . . . . . . . . . . . . 1 . . . Peak Influence 746 | 10 30 50 . 30 151 344 633 545 269 540 746 391 355 186 65 168 Initial 391 | . . . . . 7 63 240 331 266 123 376 391 200 186 20 48 Average 239 | . 1 7 . 2 54 182 420 401 203 191 568 339 277 50 9 107 Influence Increases 4825 | 10 34 120 . 40 507 479 393 874 213 956 590 5 255 132 97 120 Destroy 0b10 Robot/C 2160 | . . 100 . 40 220 300 . 340 140 540 260 . 180 40 . . Destroy 0b10 Robot/NC 220 | 10 . . . . 75 15 . 75 5 35 . . . . 5 . Destroy Leader 512 | . . 20 . . 98 60 . 116 40 128 20 . 30 . . . Allied During Kill 35 | . . . . . . . . 6 12 . 15 . . 2 . . Successful Hack 197 | . 4 . . . 37 12 . 120 . 14 . 5 . 5 . . Disable Machine 300 | . . . . . 30 60 . 135 . 60 . . . . 15 . Anti-Garrison Action 550 | . . . . . . . 350 . . . 200 . . . . . Destroy Structure 431 | . . . . . 32 32 43 82 1 134 65 . 30 10 2 . Partial Spotted 15 | . . . . . 15 . . . . . . . . . . . Lose Combat Pursuer 405 | . 30 . . . . . . . 15 45 30 . 15 75 75 120 Influence Decreases 4657 | 10 34 102 18 20 387 275 104 964 503 671 382 465 186 448 71 17 Entered New Map 1729 | . . . 18 . 13 77 104 302 277 130 162 355 86 169 19 17 Time Decay 2478 | 10 34 102 . 20 374 198 . 612 206 511 . 110 . 249 52 . Lost Part 340 | . . . . . . . . . . 30 180 . 100 30 . . Lost Ally 110 | . . . . . . . . 50 20 . 40 . . . . . Squads Dispatched 35 | . 3 . . . 4 4 . 7 2 9 . 1 2 3 . . Investigation 5 | . 2 . . . 2 . . . . 1 . . . . . . Extermination 12 | . . . . . . . . 4 . 5 . 1 . 2 . . Reinforcement 15 | . 1 . . . 2 1 . 3 2 3 . . 2 1 . . Assault . | . . . . . . . . . . . . . . . . . Garrison 3 | . . . . . . 3 . . . . . . . . . . Intercept . | . . . . . . . . . . . . . . . . . Searches Triggered . | . . . . . . . . . . . . . . . . . Construction Impeded . | . . . . . . . . . . . . . . . . . Haulers Reinforced 3 | . . . . . . . . 2 . 1 . . . . . . Active Scanning Responses . | . . . . . . . . . . . . . . . . . Cargo Convoy Interrupts . | . . . . . . . . . . . . . . . . . Stealth | -11 -10 -10 -10 -9 -8 -7 -7 -7 -6 -5 -5 -5 -5 -4 -3 -3 --------- Run | Yrd Mat Min Exi Min Mat Fac Gar Fac Fac Fac Gar Fac DSF Fac Res Gar Distress Signals 6 | . 1 . . . 1 . . . 1 1 . . . 2 . . Communications Jammed . | . . . . . . . . . . . . . . . . . Distress Signals . | . . . . . . . . . . . . . . . . . Times Spotted 188 | . 3 7 . 2 17 14 . 24 8 35 19 . 12 17 12 18 Peak Tracking Total 14 | . 3 3 . 2 2 3 . 3 5 5 9 . 4 7 7 14 Tactical Retreats 12 | . 1 1 . . . . . . 1 1 1 . 1 3 2 1 Traps | -11 -10 -10 -10 -9 -8 -7 -7 -7 -6 -5 -5 -5 -5 -4 -3 -3 ------- Run | Yrd Mat Min Exi Min Mat Fac Gar Fac Fac Fac Gar Fac DSF Fac Res Gar Traps Triggered 9 | . 1 . . . . . . 1 . 1 2 . . 3 . 1 Indirectly . | . . . . . . . . . . . . . . . . . Trap Hack Attempts . | . . . . . . . . . . . . . . . . . Triggered . | . . . . . . . . . . . . . . . . . Disarmed . | . . . . . . . . . . . . . . . . . Reprogrammed . | . . . . . . . . . . . . . . . . . Reused . | . . . . . . . . . . . . . . . . . Traps Extracted . | . . . . . . . . . . . . . . . . . Installed . | . . . . . . . . . . . . . . . . . Triggered . | . . . . . . . . . . . . . . . . . Machines | -11 -10 -10 -10 -9 -8 -7 -7 -7 -6 -5 -5 -5 -5 -4 -3 -3 ---------- Run | Yrd Mat Min Exi Min Mat Fac Gar Fac Fac Fac Gar Fac DSF Fac Res Gar Machines Disabled 26 | . . . . . 2 4 3 9 . 4 2 . 1 . 1 . Max in Single Turn 4 | . . . . . 1 4 1 2 . 1 1 . 1 . 1 . Garrison Relay 5 | . . . . . . . 2 . . . 2 . . . . 1 Phase Generator 1 | . . . . . . . 1 . . . . . . . . . Machines Repaired . | . . . . . . . . . . . . . . . . . Machines Dismantled . | . . . . . . . . . . . . . . . . . Machines Sabotaged . | . . . . . . . . . . . . . . . . . Overloaded Fab Kills . | . . . . . . . . . . . . . . . . . Hacking | -11 -10 -10 -10 -9 -8 -7 -7 -7 -6 -5 -5 -5 -5 -4 -3 -3 --------- Run | Yrd Mat Min Exi Min Mat Fac Gar Fac Fac Fac Gar Fac DSF Fac Res Gar Machines Accessed 42 | . 3 3 1 . 8 2 1 14 1 5 . 1 . 1 2 . Terminals 27 | . 3 1 . . 8 . 1 8 1 2 . 1 . 1 1 . Fabricators 1 | . . . . . . . . 1 . . . . . . . . Repair Stations 3 | . . . . . . . . 2 . 1 . . . . . . Recycling Units . | . . . . . . . . . . . . . . . . . Scanalyzers 4 | . . . . . . 1 . 2 . 1 . . . . . . Garrison Access 4 | . . . . . . 1 . 1 . 1 . . . . 1 . Total Hacks 112 | . 15 4 1 . 23 2 1 41 2 16 . 1 . 4 2 . Successful 60 | . 7 2 1 . 11 1 1 23 1 9 . 1 . 2 1 . Failed 51 | . 8 2 . . 12 1 . 17 1 7 . . . 2 1 . Catastrophic 9 | . 2 . . . 1 1 . 3 . 1 . . . . 1 . Database Lockouts 1 | . . . . . . . . 1 . . . . . . . . Manual 76 | . 15 2 1 . 23 . . 21 2 7 . . . 4 1 . Terminals 76 | . 15 2 . . 23 . 1 20 2 7 . 1 . 4 1 . Fabricators 2 | . . . . . . . . 2 . . . . . . . . Repair Stations 9 | . . . . . . . . 6 . 3 . . . . . . Recycling Units . | . . . . . . . . . . . . . . . . . Scanalyzers 17 | . . . . . . 1 . 11 . 5 . . . . . . Garrison Access 5 | . . . . . . 1 . 2 . 1 . . . . 1 . Terminal Hacks 14 | . 2 2 1 . 3 . 1 2 . 1 . 1 . 1 . . Open Door 2 | . . 2 . . . . . . . . . . . . . . Open DSF 1 | . . . . . . . . . . . . 1 . . . . Emergency Access Points 1 | . . . . . . . 1 . . . . . . . . . Terminal Index 5 | . 1 . . . 1 . . 1 . 1 . . . 1 . . Security Status 1 | . . . . . . . . 1 . . . . . . . . Recall Reinforcements 2 | . 1 . . . 1 . . . . . . . . . . . Zone Layout 1 | . . . . . 1 . . . . . . . . . . . Proto ID Catalog 1 | . . . 1 . . . . . . . . . . . . . Fabricator Hacks . | . . . . . . . . . . . . . . . . . Repair Station Hacks 6 | . . . . . . . . 4 . 2 . . . . . . Scan Component 3 | . . . . . . . . 2 . 1 . . . . . . Repair 3 | . . . . . . . . 2 . 1 . . . . . . Recycling Unit Hacks . | . . . . . . . . . . . . . . . . . Scanalyzer 13 | . . . . . . . . 9 . 4 . . . . . . Insert Component 4 | . . . . . . . . 3 . 1 . . . . . . Analyze 5 | . . . . . . . . 3 . 2 . . . . . . Retrieve Study 4 | . . . . . . . . 3 . 1 . . . . . . Garrison Access Hacks 4 | . . . . . . 1 . 1 . 1 . . . . 1 . Unlock Access 3 | . . . . . . 1 . . . 1 . . . . 1 . Coupler Status 1 | . . . . . . . . 1 . . . . . . . . Unauthorized Hacks 23 | . 5 . . . 8 . . 7 1 1 . . . 1 . . Terminals 23 | . 5 . . . 8 . . 7 1 1 . . . 1 . . Track 2 | . 2 . . . . . . . . . . . . . . . Assimilate 1 | . . . . . 1 . . . . . . . . . . . Botnet 20 | . 3 . . . 7 . . 7 1 1 . . . 1 . . Fabricators . | . . . . . . . . . . . . . . . . . Repair Stations . | . . . . . . . . . . . . . . . . . Recycling Units . | . . . . . . . . . . . . . . . . . Scanalyzers . | . . . . . . . . . . . . . . . . . Garrison Access . | . . . . . . . . . . . . . . . . . Data Cores Recovered 2 | . . . . . 1 . . . 1 . . . . . . . Used . | . . . . . . . . . . . . . . . . . Hacking Detections 35 | . 3 1 . . 8 1 1 13 1 4 . 1 . 1 1 . Full Trace Events 4 | . 1 . . . 2 . . . . 1 . . . . . . Feedback Events 1 | . . . . . 1 . . . . . . . . . . . Corruption 1 | . . . . . 1 . . . . . . . . . . . Feedback Blocked . | . . . . . . . . . . . . . . . . . Robot Schematics Acquired . | . . . . . . . . . . . . . . . . . Robots Built . | . . . . . . . . . . . . . . . . . Authchips . | . . . . . . . . . . . . . . . . . Time . | . . . . . . . . . . . . . . . . . Total Robot Build Rating . | . . . . . . . . . . . . . . . . . Part Schematics Acquired 4 | . . . . . . . . 3 . 1 . . . . . . Parts Built . | . . . . . . . . . . . . . . . . . Authchips . | . . . . . . . . . . . . . . . . . Time . | . . . . . . . . . . . . . . . . . Total Part Build Rating . | . . . . . . . . . . . . . . . . . Part Studies Acquired 4 | . . . . . . . . 3 . 1 . . . . . . Parts Repaired 3 | . . . . . . . . 2 . 1 . . . . . . Time 66 | . . . . . . . . 44 . 22 . . . . . . Parts Recycled . | . . . . . . . . . . . . . . . . . Recycled Matter . | . . . . . . . . . . . . . . . . . Retrieved Matter . | . . . . . . . . . . . . . . . . . Retrieved Components . | . . . . . . . . . . . . . . . . . Parts Scanalyzed 4 | . . . . . . . . 3 . 1 . . . . . . Part Schematics Acquired 4 | . . . . . . . . 3 . 1 . . . . . . Parts Damaged . | . . . . . . . . . . . . . . . . . Bothacking | -11 -10 -10 -10 -9 -8 -7 -7 -7 -6 -5 -5 -5 -5 -4 -3 -3 ------------ Run | Yrd Mat Min Exi Min Mat Fac Gar Fac Fac Fac Gar Fac DSF Fac Res Gar Used RIF Installer 2 | . . . . . . . 1 . . . 1 . . . . . Watcher Feeds 1 | . . . . . . . . . . . 1 . . . . . Robots Hacked 8 | . . . . . . . . 1 . 1 4 . . 2 . . Non-combat 1 | . . . . . . . . . . 1 . . . . . . Combat 7 | . . . . . . . . 1 . . 4 . . 2 . . Robot Hacks Applied 11 | . . . . . . . . 1 . 4 4 . . 2 . . parse_system 1 | . . . . . . . . . . . 1 . . . . . map_route 1 | . . . . . . . . . . 1 . . . . . . mark_security 1 | . . . . . . . . . . 1 . . . . . . link_fov 2 | . . . . . . . . . . 2 . . . . . . disrupt_area 1 | . . . . . . . . . . . 1 . . . . . streamctrl_high 4 | . . . . . . . . 1 . . 2 . . 1 . . formatsys_high 1 | . . . . . . . . . . . . . . 1 . . Relay Couplers Released 25 | . . . . . . . 10 . . . 10 . . . . 5 Machine Destruction 25 | . . . . . . . 10 . . . 10 . . . . 5 Attached 5 | . . . . . . . . 1 . 1 2 . . 1 . . Fabnet Peak Effective % . | . . . . . . . . . . . . . . . . . Robots Rewired 4 | . . . . . . . 2 . 2 . . . . . . . Allies Hacked . | . . . . . . . . . . . . . . . . . Hacks Repelled . | . . . . . . . . . . . . . . . . . Allies | -11 -10 -10 -10 -9 -8 -7 -7 -7 -6 -5 -5 -5 -5 -4 -3 -3 -------- Run | Yrd Mat Min Exi Min Mat Fac Gar Fac Fac Fac Gar Fac DSF Fac Res Gar Total Allies 13 | . . 1 . . 1 . 2 1 2 . 4 . . 2 . . Largest Group 3 | . . 1 . . 1 1 3 3 2 . 2 . . 1 . . Highest-Rated Group 175 | . . 31 . . 10 10 47 47 61 . 175 . . 47 . . Highest-Rated Ally 95 | . . 31 . . 10 10 21 32 32 . 95 . . 47 . . Total Orders 11 | . . . . . . 8 2 . 1 . . . . . . . STAY 6 | . . . . . . 4 1 . 1 . . . . . . . FOLLOW 5 | . . . . . . 4 1 . . . . . . . . . Ally Attacks 54 | . . 3 . . . . . 14 5 . 31 . . 1 . . Total Damage 1336 | . . 21 . . . . . 464 184 . 647 . . 20 . . Kills 7 | . . . . . . . . 2 1 . 4 . . . . . Allies Corrupted 1 | . . . . . . . . . . . . . . 1 . . Allies Melted . | . . . . . . . . . . . . . . . . . Intel | -11 -10 -10 -10 -9 -8 -7 -7 -7 -6 -5 -5 -5 -5 -4 -3 -3 ------- Run | Yrd Mat Min Exi Min Mat Fac Gar Fac Fac Fac Gar Fac DSF Fac Res Gar Active Infowar (turns) 1400 | 15 418 782 185 . . . . . . . . . . . . . Seismic 1400 | 15 418 782 185 . . . . . . . . . . . . . Robot Analysis Total . | . . . . . . . . . . . . . . . . . Derelict Logs Recovered 1 | . . 1 . . . . . . . . . . . . . . Drone Launches . | . . . . . . . . . . . . . . . . . Drone Recoveries . | . . . . . . . . . . . . . . . . . Exploration | -11 -10 -10 -10 -9 -8 -7 -7 -7 -6 -5 -5 -5 -5 -4 -3 -3 ------------- Run | Yrd Mat Min Exi Min Mat Fac Gar Fac Fac Fac Gar Fac DSF Fac Res Gar Turns Passed 11796 | 96 418 782 331 374 1003 417 698 2014 431 2095 1400 223 325 837 294 58 Spaces Moved 5699 | 48 180 464 208 153 552 226 404 869 131 881 690 139 111 368 195 80 Core 412 | 6 . . . . . . . . . . . . . 131 195 80 Treads 5258 | 42 180 464 208 153 552 226 404 869 131 881 690 139 111 208 . . Legs 4 | . . . . . . . . . . . . . . 4 . . Wheels . | . . . . . . . . . . . . . . . . . Hover 25 | . . . . . . . . . . . . . . 25 . . Flight . | . . . . . . . . . . . . . . . . . Fastest Speed 50 | 50 160 160 152 152 152 156 156 156 160 158 145 152 155 50 50 50 Average Speed 154 | 146 160 160 156 152 152 156 156 159 161 161 170 153 167 117 142 51 Slowest Speed 250 | 160 160 160 160 152 152 156 156 162 162 162 230 155 238 250 200 200 Overloaded Moves . | . . . . . . . . . . . . . . . . . Propulsion Burnouts . | . . . . . . . . . . . . . . . . . Robots Hopped . | . . . . . . . . . . . . . . . . . Potential Cave-ins . | . . . . . . . . . . . . . . . . . Cave-ins Triggered 1 | . . . . . . . . . . . . . 1 . . . Exploration Rate (%) 32 | 4 32 89 59 28 42 7 57 29 3 25 56 5 89 15 7 10 Regions Visited 16 Branch Regions 3 Pre-discovered Areas 2 | . . 2 . . . . . . . . . . . . . . Known Exits Taken 5 | . . . . . . 1 . . . 1 . 1 . 1 1 . Unknown Exits Taken 8 | 1 1 1 1 1 1 . . 1 1 . . . . . . . Scrap Searched 2 | . . . . 2 . . . . . . . . . . . . Spaces Dug 23 | . . . . . . . . . . 23 . . . . . . Terrain Destroyed 320 | . . . . . 40 29 78 46 1 86 18 . 17 5 . . Melee . | . . . . . . . . . . . . . . . . . Projectile 79 | . . . . . 40 1 . 4 1 10 1 . 17 5 . . AOE 241 | . . . . . . 28 78 42 . 76 17 . . . . . Terrain Rammed 3 | . . . . . . . 1 . . . . . . . . 2 Walls Destroyed . | . . . . . . . . . . . . . . . . . Machines Disabled 1 | . . . . . . . 1 . . . . . . . . . Actions | -11 -10 -10 -10 -9 -8 -7 -7 -7 -6 -5 -5 -5 -5 -4 -3 -3 --------- Run | Yrd Mat Min Exi Min Mat Fac Gar Fac Fac Fac Gar Fac DSF Fac Res Gar Total 8443 | 60 306 487 216 290 720 289 472 1493 350 1507 871 148 178 755 205 96 Wait 1937 | . 119 10 . 129 80 20 11 519 157 472 76 . 15 329 . . Move 5685 | 47 179 463 207 152 551 225 403 868 130 881 689 138 110 367 195 80 Hop . | . . . . . . . . . . . . . . . . . Pick Up 74 | 1 2 4 1 3 16 5 5 10 2 5 12 3 1 1 . 3 Fast Attach 51 | 6 2 . . . 3 . 1 7 1 7 11 2 5 5 1 . Attach 54 | . . . 3 . 3 4 2 6 1 13 12 2 4 3 . 1 Detach 26 | . 1 . 1 . 1 2 1 4 . 9 5 . . 2 . . Swap 20 | . . . . . 5 4 1 4 . 4 1 1 . . . . Drop 72 | . 1 . 4 3 15 2 5 16 2 7 6 2 3 2 1 3 Fire 329 | 6 2 8 . 3 46 24 4 43 21 92 37 . 26 11 6 . Melee 22 | . . . . . . . . 3 . 7 9 . . 3 . . Ram 12 | . . . . . . . 1 . . . . . 1 3 2 5 Kick 4 | . . . . . . . . . . . . . . 4 . . Crush 51 | . . 2 . . . 3 . 13 1 10 9 . 13 . . . Escape Stasis 33 | . . . . . . . . . . . 4 . . 25 . 4 Rewire 73 | . . . . . . . 38 . 35 . . . . . . . Trap . | . . . . . . . . . . . . . . . . . Miscellaneous . | . . . . . . . . . . . . . . . . . Route ------- -11/Scrapyard -10/Materials -10/Mines (discovered 3 exits: [*Mat x2] / *Exi) -10/Exiles (discovered 2 exits: [*Min x2]) -9/Mines -8/Materials (discovered 2 exits: *Fac x2) -7/Factory -7/Garrison -7/Factory -6/Factory -5/Factory -5/Garrison -5/Factory -5/DSF -4/Factory -3/Research -3/Garrison History --------- Turn | Location | Event 11 | -11/Scrapyard | Discovered new exit (range 16) 97 | -11/Scrapyard | Entered Materials 316 | -10/Materials | Build established: Mutant 393 | -10/Materials | Discovered new exit (range 11) 515 | -10/Materials | Entered Mines 589 | -10/Mines | Assembled infested the area 591 | -10/Mines | Found the Drone Emporium 598 | -10/Mines | Found Prototype Device 728 | -10/Mines | Learned Materials non-interactive machine intel 783 | -10/Mines | Received a Rocket Launcher from a helpful Derelict 997 | -10/Mines | Escorted by a lone wolf Derelict 1017 | -10/Mines | Learned location of Storage (-7) 1122 | -10/Mines | Discovered new exit (range 8) 1149 | -10/Mines | Discovered new exit (range 5) 1231 | -10/Mines | Met a Derelict who couldn't figure out how to use a Trap Extractor 1289 | -10/Mines | Deemed a non-threat by the Exiles lab entrance 1291 | -10/Mines | Discovered new exit (range 5) 1297 | -10/Mines | Entered Exiles 1318 | -10/Exiles | Discovered new exit (range 15) 1337 | -10/Exiles | Met 8R-AWN 1363 | -10/Exiles | Met EX-HEX 1408 | -10/Exiles | Met EX-BIN 1425 | -10/Exiles | Aligned with FarCom system 1427 | -10/Exiles | Given EX-Vault access code 1465 | -10/Exiles | Opened EX-Vault 1484 | -10/Exiles | Found XL Autogun Array 1514 | -10/Exiles | Warned to stay clear of 0b10 Research branches 1561 | -10/Exiles | Met EX-DEC 1614 | -10/Exiles | Discovered new exit (range 11) 1628 | -10/Exiles | Left Exiles lab with XL Autogun Array 1628 | -10/Exiles | Entered Mines 1941 | -9/Mines | Discovered new exit (range 11) 2002 | -9/Mines | Entered Materials 2002 | -8/Materials | Evolved 4 slots: Utility x2, Weapon x2 2003 | -8/Materials | Loaded intel: 51 non-interactive machine locations 2286 | -8/Materials | Build established: Gunner 2395 | -8/Materials | Discovered new exit (range 8) 2927 | -8/Materials | Discovered new exit (range 13) 3005 | -8/Materials | Entered Factory 3005 | -7/Factory | Accompanied by 1 ally 3005 | -7/Factory | Evolved 2 slots: Propulsion x2 3095 | -7/Factory | Garrison activated, responded to threat 3271 | -7/Factory | Garrison activated, responded to threat 3407 | -7/Factory | Identified exit to Garrison 3422 | -7/Factory | Entered Garrison 3422 | -7/Garrison | Discovered recently destroyed garrison 3422 | -7/Garrison | Accompanied by 1 ally 3441 | -7/Garrison | Heavy support dispatched to Factory 3600 | -7/Garrison | Discovered new exit (range 14) 3657 | -7/Garrison | Heavy support dispatched to Factory 3696 | -7/Garrison | Phase Generator disabled 3896 | -7/Garrison | Installed Relay Interface Framework 3977 | -7/Garrison | Garrison Relay disabled 4082 | -7/Garrison | Garrison Relay disabled 4120 | -7/Garrison | Entered Factory 4120 | -7/Factory | Accompanied by 3 allies 4796 | -7/Factory | Repaired Med. Treads+ 5554 | -7/Factory | Repaired Med. Treads+ 5941 | -7/Factory | Central database locked down 6118 | -7/Factory | Discovered new exit (range 11) 6134 | -7/Factory | Entered another Factory area 6134 | -6/Factory | Evolved 2 slots: Utility x1, Weapon x1 6474 | -6/Factory | Discovered new exit (range 8) 6565 | -6/Factory | Entered another Factory area 6565 | -5/Factory | Evolved 2 slots: Utility x2 7167 | -5/Factory | Build established: Tank 7381 | -5/Factory | Found Hvy. Reflective Plating 7521 | -5/Factory | Repaired Med. Treads+ 7681 | -5/Factory | Build established: Gunner 8311 | -5/Factory | System corruption reached 10% 8566 | -5/Factory | Build established: Tank 8660 | -5/Factory | Identified exit to Garrison 8660 | -5/Factory | Entered Garrison 8770 | -5/Garrison | Triggered checkpoint 8810 | -5/Garrison | Garrison Relay disabled 9133 | -5/Garrison | Triggered checkpoint 9133 | -5/Garrison | Triggered checkpoint 9137 | -5/Garrison | Spotted Striker 9137 | -5/Garrison | Spotted Striker 9150 | -5/Garrison | Triggered checkpoint 9173 | -5/Garrison | Destroyed Striker 9235 | -5/Garrison | Lost 16 parts (1p4n4u7w) 9283 | -5/Garrison | Discovered new exit (range 11) 9346 | -5/Garrison | Expanded RIF knowledge: Watcher Feeds 9371 | -5/Garrison | Found embedded Infiltrators 9376 | -5/Garrison | Triggered checkpoint 9444 | -5/Garrison | Garrison Relay disabled 9445 | -5/Garrison | Build established: Mutant 9771 | -5/Garrison | Build established: Skirmisher 10060 | -5/Garrison | Entered Factory 10283 | -5/Factory | Identified exit to DSF 10283 | -5/Factory | Entered DSF 10318 | -5/DSF | Additional patrols routed to DSF 10351 | -5/DSF | Core integrity fell below 50% 10451 | -5/DSF | Build established: Gunner 10458 | -5/DSF | Lost 4 parts (2n2w) 10486 | -5/DSF | Crushed by falling debris 10520 | -5/DSF | Sterilization system engaged 10520 | -5/DSF | Lost 6 parts (1n3u2w) 10540 | -5/DSF | Ambient heat levels rising (+10) 10555 | -5/DSF | Ambient heat levels rising (+10) 10559 | -5/DSF | Discovered new exit (range 14) 10570 | -5/DSF | Ambient heat levels rising (+10) 10585 | -5/DSF | Ambient heat levels rising (+10) 10600 | -5/DSF | Ambient heat levels rising (+10) 10608 | -5/DSF | Entered Factory 10608 | -4/Factory | Evolved 2 slots: Propulsion x1, Utility x1 10805 | -4/Factory | Build established: Bothacker-Mutant 11308 | -4/Factory | Released all parts (9) 11436 | -4/Factory | Discovered new exit (range 13) 11440 | -4/Factory | Core integrity fell below 50% 11444 | -4/Factory | Identified exit to Research 11445 | -4/Factory | Entered Research 11445 | -3/Research | Evolved 2 slots: Propulsion x2 11596 | -3/Research | Build established: Mutant 11739 | -3/Research | Identified exit to Garrison 11739 | -3/Research | Entered Garrison 11745 | -3/Garrison | Triggered checkpoint 11773 | -3/Garrison | Triggered checkpoint 11773 | -3/Garrison | Garrison Relay disabled 11778 | -3/Garrison | Core integrity fell below 50% 11781 | -3/Garrison | Heavy support dispatched to Research 11793 | -3/Garrison | Core integrity fell below 20% 11797 | -3/Garrison | Destroyed by G-67 Veteran with Field Laser Last Messages --------------- 11790_ Triggered Stasis Trap. 11790_ A bubble of rippling energy engulfs the area. 11790_ Field strength at 94. 11790_ Field strength at 88. 11791_ Field strength at 64. 11792_ Field strength at 54. 11793_ Field strength at 17. 11794_ Stasis field depleted. 11795_ Slammed into G-67 Veteran. 11796_ Critical hit (Burn: +37). 11797_ Slammed into G-67 Veteran. 11797_ Destabilizing: System interference. 11797_ Adv. Signal Interpreter temporarily disabled. 11797_ C-30 ARC bursts open, deploying its payload. 11797_ S-43 Plague unfolds itself. 11797_ Critical hit (Burn: +50). [Achievement: Just Browsing] Map ----- +----------------------------------------------------+ | ?????????????????????????????????????????????????? | | ?????????????????????????????????????????????????? | | ??????????????####???????????????????????????????? | | ?????????????##!!##??????????????????????????????? | | ?????????????#! !#??????????????????????????????? | | ??????????????! !#??????????????????????????????? | | ???????????????# #???????????????????????????????? | | ??????????????## #???????????????????????????????? | | ??????????????# #???????????????????????????????? | | ??????????????# #???????????????????????????????? | | ???????######## #???????????????????????????????? | | ???????# ## #???????????????????????????????? | | ??????## ## #???????????????????????????????? | | ??????# #???????????????????????????????? | | ??????# !]] #???????????????????????????????? | | ??????### !!### #???????????????????????????????? | | ???????#"" ""## #???????????????????????????????? | | ???????######## #???????????????????????????????? | | ??????????????# #???????????????????????????????? | | ??????????????# #???????????????????????????????? | | ??????????????# #???????????????????????????????? | | ??????????????# #??????????????????#####????????? | | ??????????????# x#??????????????????# #????????? | | ????????####### #################### #????????? | | ????# ^ g #????????? | | ????# s s gg@ #????????? | | ????# s s^ ^g g #????????? | | ????# #################g #############????????? | | ????# ??????????????????# #????????????????????? | | ????????????????????????##g##????????????????????? | | ?????????????????????????? #?????????????????????? | | ?????????????????????????? #?????????????????????? | | ???????????????????????g?? ?????????????????????? | | ??????????????????????????##?????????????????????? | | ?????????????????????????????????????????????????? | | ?????????????????????????????????????????????????? | | ?????????????????????????????????????????????????? | | ?????????????????????????????????????????????????? | | ?????????????????????????????????????????????????? | | ?????????????????????????????????????????????????? | | ?????????????????????????????????????????????????? | | ?????????????????????????????????????????????????? | | ?????????????????????????????????????????????????? | | ?????????????????????????????????????????????????? | | ?????????????????????????????????????????????????? | | ?????????????????????????????????????????????????? | | ?????????????????????????????????????????????????? | | ?????????????????????????????????????????????????? | | ?????????????????????????????????????????????????? | | ?????????????????????????????????????????????????? | +----------------------------------------------------+ Best States ------------- Heat Dissipation 46 Coolant Potential 80 Energy Generation 18 Energy Capacity 300 Matter Stores 300 Matter Capacity 300 Sight Range 16 Terrain Scan Density 10 Armor Coverage 900 Resistance: KI 20 Resistance: TH 25 Power Shielding 66 Evasion (%) 53 Targeting Accuracy 16 Core Analysis 6 Recoil Reduction 4 Relay Coupler Types 1 Relay Coupler Value 26 Item Schematics ----------------- Imp. Medium Armor Plating | -7/Factory | Scanalyzed Flak Cannon | -7/Factory | Scanalyzed Gauss Rifle | -7/Factory | Scanalyzed Med. Treads | -5/Factory | Scanalyzed Robot Schematics ------------------ None Fabricated ------------ Nothing Repaired ---------- Med. Treads | 46% | -7/Factory Med. Treads | 47% | -7/Factory Med. Treads | 32% | -5/Factory Studied --------- Flak Cannon | -7/Factory | Hacked Med. Treads | -7/Factory | Hacked Hvy. Missile Launcher | -7/Factory | Hacked Gauss Rifle | -5/Factory | Hacked Alien Tech Used ----------------- None Achievements -------------- Analysis Probe Assimilation Complete Backstab Hot Goods Hydra Join The Dark Side Just Browsing Mindtrick My Bad Oppo Buddy You Will Be Upgraded Challenges ------------ None Game ------ Seed NeutronGammaTube Manual? 0 Play Time 01:53:27 Cumulative 18.9 hours Start 2025.10.30 @ 18:35:43 End 2025.10.30 @ 23:14:09 Sessions 1 Manual Loads 0 Difficulty Rogue Special Mode None Game No. 30 Rogue 30 Adventurer 0 Explorer 0 Win Type - Total 2 Types 2/0/0/0/0/0/0/0/0/0 Lore% 34 Gallery% 25 Achievement% 24 Wizard Run 0 Options --------- Layout 1 ASCII 0 Keyboard 1 Movement Arrows Keybinds 0 Fullscreen 1 Font 16/SmallcapsGlow Map View 50x54 Zoom Use 0% Tactical HUD 1 Map Filters NONE Filters NONE Steam 1 RUN: 13586ca8-6c0f-4fae-9eaf-155fcbc65abc